fUSD/lending_fUSD_20250305
["ID","MTS","AMOUNT","RATE_DAILY","PERIOD"]
[355431247,1741141838153,-508.20868962,0.00012073,2]
[355431248,1741141838162,-3492.06,0.00012077,2]
[355431249,1741141838172,-6374.15049257,0.00012077,2]
[355431250,1741141838195,-175.58950743,0.00012077,2]
[355431251,1741141838204,-3223.62,0.00012077,2]
[355431252,1741141838214,-2745.63,0.00012077,2]
[355431253,1741141838223,-2087.62,0.00012077,2]
[355431254,1741141838233,-500.0,0.00012077,2]
[355431255,1741141838242,-4836.44,0.00012077,2]
[355431256,1741141838252,-3452.18,0.00012077,2]
[355431257,1741141838262,-500.0,0.00012077,2]
[355431258,1741141838271,-500.0,0.00012077,2]
[355431259,1741141838281,-1397.67,0.00012077,2]
[355431260,1741141838290,-4662.95,0.00012077,2]
[355431261,1741141838300,-5817.98,0.00012077,2]
[355431262,1741141838310,-1530.23,0.00012077,2]
[355431263,1741141838319,-8380.24,0.00012077,2]
[355431264,1741141838329,-2560.5,0.00012077,2]
[355431265,1741141838338,-4422.25,0.00012077,2]
[355431266,1741141838348,-5815.0,0.00012077,2]
[355431267,1741141838357,-956.03,0.00012077,2]
[355431268,1741141838366,-500.0,0.00012077,2]
[355431269,1741141838375,-1410.35,0.00012077,2]
[355431270,1741141838384,-2469.68,0.00012077,2]
[355431271,1741141838394,-500.0,0.00012077,2]
[355431272,1741141838404,-1411.99,0.00012077,2]
[355431273,1741141838414,-2804.27,0.00012077,2]
[355431274,1741141838424,-4951.41,0.00012077,2]
[355431275,1741141838433,-1115.35,0.00012077,2]
[355431276,1741141838443,-2092.09,0.00012077,2]
[355431277,1741141838454,-500.0,0.00012077,2]
[355431278,1741141838464,-500.0,0.00012077,2]
[355431279,1741141838474,-2651.51,0.00012077,2]
[355431280,1741141838484,-1744.91,0.00012077,2]
[355431281,1741141838494,-489.01392274,0.00012077,2]
[355431282,1741141838504,-500.0,0.00012078,2]
[355431283,1741141838513,-500.0,0.00012078,2]
[355431284,1741141838523,-1027.69,0.00012078,2]
[355431285,1741141838533,-1647.15,0.00012078,2]
[355431286,1741141838542,-504.37,0.00012078,2]
[355431287,1741141838551,-514.1,0.00012078,2]
[355431288,1741141838561,-865.19,0.00012078,2]
[355431289,1741141838571,-1975.52,0.00012078,2]
[355431290,1741141838580,-500.0,0.00012078,2]
[355431291,1741141838590,-500.0,0.00012078,2]
[355431292,1741141838600,-1970.66,0.00012078,2]
[355431293,1741141838610,-500.0,0.00012078,2]
[355431294,1741141838619,-500.0,0.00012078,2]
[355431295,1741141838628,-295.79540882,0.00012078,2]
[355431296,1741141838641,-844.20459118,0.00012078,2]
[355431297,1741141838651,-500.0,0.00012078,2]
[355431298,1741141838660,-500.0,0.00012078,2]
[355431299,1741141838670,-1045.63,0.00012078,2]
[355431300,1741141838680,-500.0,0.00012078,2]
[355431301,1741141838689,-905.98,0.00012078,2]
[355431302,1741141838700,-500.0,0.00012078,2]
[355431303,1741141838709,-1173.06,0.00012078,2]
[355431304,1741141838718,-500.0,0.00012078,2]
[355431305,1741141838728,-1035.54,0.00012078,2]
[355431306,1741141838737,-1739.9,0.00012078,2]
[355431307,1741141838746,-1568.6,0.00012078,2]
[355431308,1741141838756,-500.0,0.00012078,2]
[355431309,1741141838765,-1045.11,0.00012078,2]
[355431310,1741141838774,-928.69,0.00012078,2]
[355431311,1741141838784,-629.86,0.00012078,2]
[355431312,1741141838794,-588.27,0.00012078,2]
[355431313,1741141838803,-1343.05,0.00012078,2]
[355431314,1741141838812,-257.89156,0.00012078,2]
[355431315,1741141838821,-500.0,0.00012078,2]
[355431316,1741141838830,-1993.67,0.00012078,2]
[355431317,1741141838839,-500.0,0.00012078,2]
[355431318,1741141838849,-500.0,0.00012078,2]
[355431319,1741141838858,-500.0,0.00012078,2]
[355431320,1741141838867,-500.0,0.00012078,2]
[355431321,1741141838876,-1198.02,0.00012078,2]
[355431322,1741141838886,-500.0,0.00012078,2]
[355431323,1741141838895,-151.007056,0.00012078,2]
[355431324,1741141838905,-500.0,0.00012078,2]
[355431325,1741141838914,-1139.08,0.00012078,2]
[355431326,1741141838924,-500.0,0.00012078,2]
[355431327,1741141838933,-2260.76,0.00012078,2]
[355431328,1741141838945,-500.0,0.00012078,2]
[355431329,1741141838954,-942.15,0.00012078,2]
[355431330,1741141838963,-500.0,0.00012078,2]
[355431331,1741141838973,-500.0,0.00012078,2]
[355431332,1741141838982,-557.61104181,0.00012078,2]
[355431333,1741141838991,-500.0,0.00012078,2]
[355431334,1741141839005,-498.31955937,0.00012078,2]
[355431335,1741141839015,-500.0,0.00012078,2]
[355431336,1741141839024,-408.78264517,0.00012078,2]
[355431337,1741141839033,-1179.86,0.00012078,2]
[355431338,1741141839042,-2081.26,0.00012078,2]
[355431339,1741141839052,-500.0,0.00012078,2]
[355431340,1741141839061,-505.02079851,0.00012078,2]
[355431341,1741141839070,-872.29,0.00012078,2]
[355431342,1741141839081,-500.0,0.00012078,2]
[355431343,1741141839090,-500.0,0.00012078,2]
[355431344,1741141839099,-1411.16,0.00012078,2]
[355431345,1741141839109,-500.0,0.00012078,2]
[355431346,1741141839118,-1113.7,0.00012078,2]
[355431347,1741141839127,-500.0,0.00012078,2]
[355431348,1741141839137,-500.0,0.00012078,2]
[355431349,1741141839146,-547.39745642,0.00012078,2]
[355431350,1741141839156,-710.91,0.00012078,2]
[355431351,1741141839165,-513.73927007,0.00012078,2]
[355431352,1741141839174,-1077.87,0.00012078,2]
[355431353,1741141839183,-500.0,0.00012078,2]
[355431354,1741141839192,-1084.23,0.00012078,2]
[355431355,1741141839202,-500.0,0.00012078,2]
[355431356,1741141839211,-3301.24,0.00012078,2]
[355431357,1741141839221,-1996.28,0.00012078,2]
[355431358,1741141839230,-500.0,0.00012078,2]
[355431359,1741141839239,-1156.59,0.00012078,2]
[355431360,1741141839249,-506.41657534,0.00012078,2]
[355431361,1741141839259,-500.0,0.00012078,2]
[355431362,1741141839268,-287.5367322,0.00012078,2]
[355431363,1741141839278,-999.92,0.00012078,2]
[355431364,1741141839288,-500.0,0.00012078,2]
[355431365,1741141839297,-500.0,0.00012078,2]
[355431366,1741141839307,-509.58598537,0.00012078,2]
[355431367,1741141839317,-1441.02,0.00012078,2]
[355431368,1741141839326,-500.0,0.00012078,2]
[355431369,1741141839335,-785.38,0.00012078,2]
[355431370,1741141839346,-500.0,0.00012078,2]
[355431371,1741141839355,-290.27625269,0.00012078,2]
[355431375,1741141840094,-3530.21,0.00012077,2]
[355431376,1741141840105,-209.72374731,0.00012078,2]
[355431377,1741141840115,-500.0,0.00012078,2]
[355431378,1741141840124,-500.0,0.00012078,2]
[355431379,1741141840134,-189.68212789,0.00012078,2]
[355431380,1741141840143,-304.15482987,0.00012078,2]
[355431381,1741141840155,-195.84517013,0.00012078,2]
[355431382,1741141840165,-124.83044567,0.00012078,2]
[355431405,1741141842750,-500.0,0.00012077,2]
[355431407,1741141842759,-500.0,0.00012077,2]
[355431408,1741141842769,-963.79,0.00012077,2]
[355431409,1741141842779,-375.16955433,0.00012078,2]
[355431410,1741141842788,-261.02788565,0.00012078,2]
[355431411,1741141842799,-238.97211435,0.00012078,2]
[355431412,1741141842809,-500.0,0.00012078,2]
[355431413,1741141842818,-500.0,0.00012078,2]
[355431414,1741141842828,-500.0,0.00012078,2]
[355431415,1741141842837,-500.0,0.00012078,2]
[355431416,1741141842847,-500.0,0.00012078,2]
[355431417,1741141842857,-500.0,0.00012078,2]
[355431418,1741141842869,-922.88,0.00012078,2]
[355431419,1741141842879,-745.53,0.00012078,2]
[355431420,1741141842889,-299.06683987,0.00012078,2]
[355431421,1741141842899,-1371.87,0.00012078,2]
[355431422,1741141842909,-1824.08104578,0.00012078,2]
[355431442,1741141844195,-10.50895422,0.00012078,2]
[355431443,1741141844205,-2597.73,0.00012078,2]
[355431444,1741141844215,-3856.49824578,0.00012078,2]
[355431445,1741141844226,-3549.96844399,0.00012078,2]
[355431446,1741141844255,-524.47093624,0.00012078,2]
[355431457,1741141845736,-254.14429579,0.00012077,2]
[355431458,1741141845749,-245.85570421,0.00012077,2]
[355431459,1741141845759,-89.45000006,0.00012078,2]
[355431460,1741141845771,-1936.62483291,0.00012078,2]
[355431461,1741141845782,-379.89623438,0.00012078,2]
[355431462,1741141845794,-1924.83130664,0.00012078,2]
[355431463,1741141845804,-600.0,0.00012078,2]
[355431464,1741141845814,-520.13071986,0.00012078,2]
[355431465,1741141845824,-2974.22,0.00012078,2]
[355431466,1741141845834,-3105.45,0.00012078,2]
[355431467,1741141845843,-500.0,0.00012078,2]
[355431468,1741141845854,-330.80703194,0.00012078,2]
[355431469,1741141845864,-508.99529994,0.00012078,2]
[355431470,1741141845873,-3202.88,0.00012078,2]
[355431471,1741141845883,-922.61,0.00012078,2]
[355431472,1741141845893,-1318.75,0.00012078,2]
[355431473,1741141845903,-500.0,0.00012078,2]
[355431474,1741141845914,-1307.65,0.00012078,2]
[355431475,1741141845924,-2570.35,0.00012078,2]
[355431476,1741141845934,-2968.29,0.00012078,2]
[355431477,1741141845944,-1077.15,0.00012078,2]
[355431478,1741141845954,-4165.84,0.00012078,2]
[355431479,1741141845964,-2261.4,0.00012078,2]
[355431480,1741141845974,-500.0,0.00012078,2]
[355431481,1741141845984,-4499.06,0.00012078,2]
[355431482,1741141845993,-2440.81,0.00012078,2]
[355431483,1741141846006,-864.47,0.00012078,2]
[355431484,1741141846017,-500.0,0.00012078,2]
[355431485,1741141846027,-7999.77,0.00012078,2]
[355431486,1741141846037,-1649.5686931,0.00012078,2]
[355431487,1741141846050,-2067.2413069,0.00012078,2]
[355431488,1741141846059,-4481.54,0.00012078,2]
[355431489,1741141846069,-500.0,0.00012078,2]
[355431490,1741141846079,-1405.76,0.00012078,2]
[355431491,1741141846090,-3695.39,0.00012078,2]
[355431492,1741141846100,-5391.92101309,0.00012078,2]
[355431493,1741141846111,-543.2619752,0.00012078,2]
[355431494,1741141846123,-769.686283,0.00012078,2]
[355431495,1741141846135,-4301.63072871,0.00012078,2]
[355431496,1741141846144,-2323.72,0.00012078,2]
[355431497,1741141846154,-500.0,0.00012078,2]
[355431498,1741141846166,-500.0,0.00012078,2]
[355431499,1741141846176,-500.0,0.00012078,2]
[355431500,1741141846186,-3750.97,0.00012078,2]
[355431501,1741141846196,-3391.18,0.00012078,2]
[355431502,1741141846206,-1318.64,0.00012078,2]
[355431503,1741141846216,-9476.37,0.00012078,2]
[355431504,1741141846226,-4656.79,0.00012078,2]
[355431505,1741141846235,-4517.95,0.00012078,2]
[355431506,1741141846245,-2005.79,0.00012078,2]
[355431507,1741141846257,-606.66204553,0.00012078,2]
[355431508,1741141846266,-2387.25,0.00012078,2]
[355431509,1741141846276,-172.7166182,0.00012078,2]
[355431510,1741141846287,-1903.8633818,0.00012078,2]
[355431511,1741141846297,-3337.48,0.00012078,2]
[355431512,1741141846307,-3694.66716915,0.00012078,2]
[355431513,1741141846319,-8792.85283085,0.00012078,2]
[355431514,1741141846329,-500.0,0.00012078,2]
[355431515,1741141846339,-2102.06,0.00012078,2]
[355431516,1741141846348,-2077.75,0.00012078,2]
[355431517,1741141846358,-500.0,0.00012078,2]
[355431518,1741141846367,-5311.74,0.00012078,2]
[355431519,1741141846377,-10305.53,0.00012078,2]
[355431520,1741141846387,-7210.45,0.00012078,2]
[355431521,1741141846397,-530.69443571,0.00012078,2]
[355431522,1741141846407,-858.84,0.00012078,2]
[355431523,1741141846419,-3965.87,0.00012078,2]
[355431524,1741141846429,-5725.88,0.00012078,2]
[355431525,1741141846439,-333.29160163,0.00012078,2]
[355431526,1741141846448,-5034.64,0.00012078,2]
[355431527,1741141846458,-500.0,0.00012078,2]
[355431528,1741141846467,-500.0,0.00012078,2]
[355431529,1741141846477,-7858.85,0.00012078,2]
[355431530,1741141846487,-262.06367875,0.00012078,2]
[355431531,1741141846496,-500.0,0.00012078,2]
[355431532,1741141846506,-6615.87,0.00012078,2]
[355431533,1741141846515,-911.21,0.00012078,2]
[355431534,1741141846525,-2517.3,0.00012078,2]
[355431535,1741141846535,-2505.75,0.00012078,2]
[355431536,1741141846546,-547.99300799,0.00012078,2]
[355431537,1741141846555,-500.0,0.00012078,2]
[355431538,1741141846565,-4069.44,0.00012078,2]
[355431539,1741141846575,-2671.29586651,0.00012078,2]
[355431540,1741141847091,-1679.39413349,0.00012078,2]
[355431541,1741141847101,-500.0,0.00012078,2]
[355431542,1741141847111,-1574.98,0.00012078,2]
[355431543,1741141847120,-917.63391158,0.00012078,2]
[355431544,1741141847134,-755.30239735,0.00012078,2]
[355431545,1741141847146,-2092.48369107,0.00012078,2]
[355431546,1741141847155,-3489.93272903,0.00012078,2]
[355431547,1741141847167,-470.22347517,0.00012078,2]
[355431548,1741141847246,-1758.15,0.00012077,2]
[355431549,1741141847257,-885.4437958,0.00012078,2]
[355431550,1741141847266,-460.5987432,0.00012078,2]
[355431551,1741141847278,-50.29716046,0.00012078,2]
[355431552,1741141847289,-438.28630464,0.00012078,2]
[355431553,1741141847299,-128.8711355,0.00012078,2]
[355431554,1741141847310,-371.1288645,0.00012078,2]
[355431555,1741141847321,-500.0,0.00012078,2]
[355431556,1741141847334,-8.28149365,0.00012078,2]
[355431557,1741141847345,-491.71850635,0.00012078,2]
[355431558,1741141847354,-188.59214518,0.00012078,2]
[355431559,1741142140950,13065.0,5e-05,120]
[355431574,1741142856653,1518.94395527,0.00012,120]
[355431575,1741142952113,340.85,9.153e-05,2]
[355431580,1741143032103,-550.0,0.00011,2]
[355431581,1741143032113,-150.0,0.00011063,2]
[355431582,1741143032122,-1000.0,0.00011125,2]
[355431583,1741143032132,-256.0,0.0001134,2]
[355431584,1741143032141,-340.85,0.00011417,2]
[355431585,1741143032151,-500.0,0.00011726,2]
[355431586,1741143032160,-300.0,0.00011972,2]
[355431587,1741143032170,-2842.03687382,0.00011973,2]
[355431588,1741143032179,-1691.90635265,0.00011973,2]
[355431589,1741143032191,-957.1647,0.00011977,2]
[355431590,1741143032201,-652.6466202,0.00011977,2]
[355431591,1741143032210,-443.4193,0.00011978,2]
[355431592,1741143032220,-397.5040079,0.00012,2]
[355431593,1741143032232,-3079.51141144,0.00012,2]
[355431594,1741143032244,-7.28659636,0.00012,2]
[355431595,1741143032254,-2493.96734433,0.00012017,2]
[355431596,1741143032265,-293.49962424,0.00012017,2]
[355431597,1741143032277,-54.56990516,0.00012017,2]
[355431598,1741143032287,-685.83173484,0.00012017,2]
[355431599,1741143032310,-580.99624631,0.00012017,2]
[355431602,1741143037786,-425.07837142,0.00012017,2]
[355431603,1741143037796,-425.41309092,0.00012024,2]
[355431604,1741143037806,-212.13836049,0.00012052,2]
[355431605,1741143037816,-2842.03687373,0.00012061,2]
[355431606,1741143037825,-1691.90635257,0.00012061,2]
[355431607,1741143037835,-200.39265608,0.00012067,2]
[355431608,1741143037844,-150.0,0.00012068,2]
[355431609,1741143037853,-247.146078,0.00012069,2]
[355431610,1741143037862,-151.007056,0.00012069,2]
[355431611,1741143037872,-500.0,0.00012069,2]
[355431612,1741143037882,-162.66006137,0.00012069,2]
[355431613,1741143037891,-500.0,0.00012069,2]
[355431614,1741143037901,-522.9750847,0.00012069,2]
[355431615,1741143037910,-500.0,0.00012069,2]
[355431616,1741143037920,-500.0,0.00012069,2]
[355431617,1741143037929,-688.42,0.00012069,2]
[355431618,1741143037940,-1068.88,0.00012069,2]
[355431619,1741143037950,-500.0,0.00012069,2]
[355431620,1741143037960,-500.0,0.00012069,2]
[355431621,1741143037971,-500.0,0.00012069,2]
[355431622,1741143037980,-959.35,0.00012069,2]
[355431623,1741143037989,-500.0,0.00012069,2]
[355431624,1741143037999,-500.0,0.00012069,2]
[355431625,1741143038009,-500.0,0.00012069,2]
[355431626,1741143038019,-801.84,0.00012069,2]
[355431627,1741143038029,-500.0,0.00012069,2]
[355431628,1741143038038,-500.0,0.00012069,2]
[355431629,1741143038047,-161.16671603,0.00012069,2]
[355431630,1741143038059,-519.79559097,0.00012069,2]
[355431631,1741143038071,-633.747693,0.00012069,2]
[355431632,1741143038080,-116.2223068,0.00012069,2]
[355431633,1741143038105,5000.0,0.0002,120]
[355431634,1741143038123,-383.7776932,0.00012069,2]
[355431635,1741143038132,-11793.12,0.00012069,2]
[355431636,1741143038141,-415.14447293,0.00012069,2]
[355431637,1741143038152,-560.05861585,0.00012069,2]
[355431639,1741143038164,-219.78691122,0.00012069,2]
[355431640,1741143038174,-500.0,0.00012069,2]
[355431643,1741143038183,-527.89451328,0.00012069,2]
[355431645,1741143038194,-550.71,0.00012069,2]
[355431646,1741143038204,-504.18112349,0.00012069,2]
[355431648,1741143038214,-502.76730709,0.00012069,2]
[355431650,1741143038223,-506.02351698,0.00012069,2]
[355431652,1741143038232,-500.0,0.00012069,2]
[355431654,1741143038241,-500.0,0.00012069,2]
[355431656,1741143038250,-500.0,0.00012069,2]
[355431658,1741143038259,-500.0,0.00012069,2]
[355431660,1741143038268,-237.43662794,0.00012069,2]
[355431663,1741143038281,-1041.48337206,0.00012069,2]
[355431665,1741143038291,-500.0,0.00012069,2]
[355431667,1741143038301,-132.21663794,0.00012069,2]
[355431672,1741143038347,-382.70483534,0.00012069,2]
[355431673,1741143038356,-500.0,0.00012069,2]
[355431674,1741143038366,-500.0,0.00012069,2]
[355431675,1741143038375,-523.0209713,0.00012069,2]
[355431676,1741143038414,-740.7790287,0.00012069,2]
[355431677,1741143038424,-492.64853731,0.00012069,2]
[355431678,1741143038436,-663.76146269,0.00012069,2]
[355431679,1741143038447,-1672.21,0.00012069,2]
[355431680,1741143038457,-500.0,0.00012069,2]
[355431681,1741143038466,-500.0,0.00012069,2]
[355431682,1741143038477,-500.0,0.00012069,2]
[355431683,1741143038487,-3992.27,0.00012069,2]
[355431684,1741143038496,-1684.89,0.00012069,2]
[355431685,1741143038505,-500.0,0.00012069,2]
[355431686,1741143038515,-500.0,0.00012069,2]
[355431687,1741143038525,-2167.18,0.00012069,2]
[355431688,1741143038534,-202.5585374,0.00012069,2]
[355431689,1741143038546,-297.4414626,0.00012069,2]
[355431690,1741143038555,-500.0,0.00012069,2]
[355431691,1741143038566,-189.47902098,0.00012069,2]
[355431693,1741143039956,-310.52097902,0.00012069,2]
[355431694,1741143039966,-495.53454562,0.00012069,2]
[355431695,1741143039977,-4.46545438,0.00012069,2]
[355431696,1741143039987,-492.12991475,0.00012069,2]
[355431697,1741143040112,-718.56877462,0.00012069,2]
[355431698,1741143040269,-726.2650299,0.00012069,2]
[355431699,1741143040435,-380.8319,0.00012069,2]
[355431734,1741143042899,-1703.70885723,0.00012069,2]
[355431735,1741143042956,-676.16000008,0.00012069,2]
[355431736,1741143042968,-2968.78552342,0.00012069,2]
[355431737,1741143042977,-898.55447658,0.00012069,2]
[355431738,1741143042989,-2077.50552342,0.00012069,2]
[355431739,1741143042999,-500.0,0.00012069,2]
[355431740,1741143043009,-500.0,0.00012069,2]
[355431741,1741143043018,-500.0,0.00012069,2]
[355431742,1741143043028,-1032.61,0.00012069,2]
[355431743,1741143043038,-4294.8,0.00012069,2]
[355431744,1741143043048,-2463.25,0.00012069,2]
[355431745,1741143043058,-500.0,0.00012069,2]
[355431746,1741143043067,-500.0,0.00012069,2]
[355431747,1741143043077,-500.0,0.00012069,2]
[355431748,1741143043087,-500.0,0.00012069,2]
[355431749,1741143043096,-1906.94649696,0.00012069,2]
[355431750,1741143043113,-328.60188594,0.00012069,2]
[355431896,1741143044771,-2076.0516171,0.00012069,2]
[355431899,1741143044783,-905.1,0.00012069,2]
[355431901,1741143044795,-508.1086096,0.00012069,2]
[355431903,1741143044807,-500.0,0.00012069,2]
[355431906,1741143044819,-336.73448276,0.00012069,2]
[355431908,1741143044834,-163.26551724,0.00012069,2]
[355431910,1741143044846,-500.0,0.00012069,2]
[355431913,1741143044858,-354.41748456,0.00012069,2]
[355431915,1741143044872,-145.58251544,0.00012069,2]
[355431917,1741143044884,-565.98,0.00012069,2]
[355431919,1741143044896,-478.31921667,0.00012069,2]
[355431920,1741143044911,-446.51173508,0.00012069,2]
[355431921,1741143045212,-3404.86904825,0.00012069,2]
[355431922,1741143045224,-3594.67,0.00012069,2]
[355431923,1741143045236,-3346.55,0.00012069,2]
[355431924,1741143045248,-3089.31,0.00012069,2]
[355431925,1741143045260,-3561.95,0.00012069,2]
[355431926,1741143045272,-500.0,0.00012069,2]
[355431927,1741143045284,-3198.41,0.00012069,2]
[355431928,1741143045295,-9081.52,0.00012069,2]
[355431929,1741143045307,-500.0,0.00012069,2]
[355431930,1741143045319,-500.0,0.00012069,2]
[355431931,1741143045331,-6276.84,0.00012069,2]
[355431932,1741143045342,-966.19379969,0.00012069,2]
[355431933,1741143045440,-798.19146953,0.00012069,2]
[355431934,1741143045455,-800.069992,0.00012069,2]
[355431935,1741143045517,-66.76473878,0.00012069,2]
[355431936,1741143045528,-503.27067582,0.00012069,2]
[355431937,1741143045539,-533.42617479,0.00012069,2]
[355431938,1741143045550,-5163.42193241,0.00012069,2]
[355431939,1741143045564,-1152.9712,0.00012069,2]
[355431940,1741143045644,-593.62686759,0.00012069,2]
[355431941,1741143045656,-500.0,0.00012069,2]
[355431942,1741143045669,-1689.07313241,0.00012069,2]
[355431953,1741143046807,-311.56686759,0.00012069,2]
[355431954,1741143046816,-500.0,0.00012069,2]
[355431955,1741143046825,-849.13,0.00012069,2]
[355431956,1741143046836,-500.0,0.00012069,2]
[355431957,1741143046845,-4824.86,0.00012069,2]
[355431958,1741143046855,-3249.88,0.00012069,2]
[355431959,1741143046864,-4634.92,0.00012069,2]
[355431960,1741143046873,-2287.78,0.00012069,2]
[355431961,1741143046883,-508.10939016,0.00012069,2]
[355431962,1741143046892,-500.0,0.00012069,2]
[355431963,1741143046902,-500.0,0.00012069,2]
[355431964,1741143046912,-500.0,0.00012069,2]
[355431965,1741143046921,-503.17566836,0.00012069,2]
[355431966,1741143046931,-1271.2,0.00012069,2]
[355431967,1741143046940,-500.0,0.00012069,2]
[355431968,1741143046950,-1031.21,0.00012069,2]
[355431969,1741143046960,-7531.4,0.00012069,2]
[355431970,1741143046970,-500.0,0.00012069,2]
[355431971,1741143046980,-500.0,0.00012069,2]
[355431972,1741143046989,-723.32,0.00012069,2]
[355431973,1741143046998,-9876.14,0.00012069,2]
[355431974,1741143047009,-500.0,0.00012069,2]
[355431975,1741143047018,-2979.1,0.00012069,2]
[355431976,1741143047027,-1922.21,0.00012069,2]
[355431977,1741143047037,-9964.34,0.00012069,2]
[355431978,1741143047047,-3308.34,0.00012069,2]
[355431979,1741143047056,-1223.5,0.00012069,2]
[355431980,1741143047066,-611.72,0.00012069,2]
[355431981,1741143047075,-500.0,0.00012069,2]
[355431982,1741143047085,-1466.47,0.00012069,2]
[355431983,1741143047094,-500.0,0.00012069,2]
[355431984,1741143047103,-3429.56,0.00012069,2]
[355431985,1741143047111,-500.0,0.00012069,2]
[355431986,1741143047121,-500.0,0.00012069,2]
[355431987,1741143047130,-513.00144185,0.00012069,2]
[355431988,1741143047139,-2545.91,0.00012069,2]
[355431989,1741143047148,-5090.42,0.00012069,2]
[355431990,1741143047156,-1339.44,0.00012069,2]
[355431991,1741143047166,-500.0,0.00012069,2]
[355431992,1741143047175,-4643.7,0.00012069,2]
[355431993,1741143047184,-6340.2,0.00012069,2]
[355431994,1741143047193,-500.0,0.00012069,2]
[355431995,1741143047203,-8031.06,0.00012069,2]
[355431996,1741143047212,-3996.36700676,0.00012069,2]
[355431997,1741143047275,-1579.20299324,0.00012069,2]
[355431998,1741143047285,-500.0,0.00012069,2]
[355431999,1741143047294,-4237.99,0.00012069,2]
[355432000,1741143047304,-620.15,0.00012069,2]
[355432001,1741143047314,-4642.73388239,0.00012069,2]
[355432002,1741143047325,-1941.44272409,0.00012069,2]
[355432003,1741143047336,-13596.56339352,0.00012069,2]
[355432004,1741143047346,-500.0,0.00012069,2]
[355432005,1741143047355,-509.0874494,0.00012069,2]
[355432006,1741143047364,-500.0,0.00012069,2]
[355432007,1741143047374,-3899.88,0.00012069,2]
[355432008,1741143047383,-500.0,0.00012069,2]
[355432009,1741143047393,-669.87,0.00012069,2]
[355432010,1741143047405,-2941.31,0.00012069,2]
[355432011,1741143047414,-500.0,0.00012069,2]
[355432012,1741143047423,-2453.81,0.00012069,2]
[355432013,1741143047434,-500.0,0.00012069,2]
[355432014,1741143047443,-500.0,0.00012069,2]
[355432015,1741143047452,-3608.53,0.00012069,2]
[355432016,1741143047461,-500.0,0.00012069,2]
[355432017,1741143047471,-500.0,0.00012069,2]
[355432018,1741143047481,-2089.76,0.00012069,2]
[355432019,1741143047490,-500.0,0.00012069,2]
[355432020,1741143047499,-500.0,0.00012069,2]
[355432021,1741143047510,-3565.31772848,0.00012069,2]
[355432022,1741143047522,-604.09227152,0.00012069,2]
[355432023,1741143047532,-571.66786142,0.00012069,2]
[355432024,1741143047541,-500.0,0.00012069,2]
[355432025,1741143047551,-935.6,0.00012069,2]
[355432026,1741143047560,-916.2,0.00012069,2]
[355432027,1741143047570,-1351.59,0.00012069,2]
[355432028,1741143047580,-500.0,0.00012069,2]
[355432029,1741143047589,-500.0,0.00012069,2]
[355432030,1741143047603,-4745.1,0.00012069,2]
[355432031,1741143047612,-1680.39,0.00012069,2]
[355432032,1741143047622,-814.0,0.00012069,2]
[355432033,1741143047632,-1353.16,0.00012069,2]
[355432034,1741143047643,-2366.78,0.00012069,2]
[355432035,1741143047653,-500.0,0.00012069,2]
[355432036,1741143047663,-500.0,0.00012069,2]
[355432037,1741143047673,-627.5180912,0.00012069,2]
[355432038,1741143047682,-2541.03,0.00012069,2]
[355432039,1741143047692,-500.0,0.00012069,2]
[355432040,1741143047704,-2687.42,0.00012069,2]
[355432041,1741143047713,-500.0,0.00012069,2]
[355432042,1741143047723,-500.0,0.00012069,2]
[355432043,1741143047732,-516.16993302,0.00012069,2]